bitfinex-derivatives/quotes_BNBF0:USTF0_20250521
["timestamp","ask_amount","ask_price","bid_price","bid_amount"]
[1747799212010,0.26435935,658.98,657.84,0.61481006]
[1747799212210,0.26435935,658.98,657.64,1.034]
[1747799212410,0.26435935,658.98,657.65,0.61480794]
[1747799212610,0.26435935,658.98,657.66,1.73435991]
[1747799212807,0.26435935,658.98,657.67,0.61480794]
[1747799213006,0.26435935,658.98,657.68,0.61480794]
[1747799213205,0.26435935,658.98,657.69,1.73435991]
[1747799213406,0.26435935,658.98,657.7,0.61480794]
[1747799213611,1.069,658.99,657.71,0.91891757]
[1747799213809,1.069,658.99,657.72,0.61490019]
[1747799214004,1.069,658.99,657.73,0.61490019]
[1747799214204,1.069,658.99,657.74,0.61490019]
[1747799214405,1.069,658.99,657.75,0.61490019]
[1747799214604,1.069,658.99,657.76,0.61490019]
[1747799214810,1.069,658.99,657.77,0.61490019]
[1747799215010,0.26435031,658.98,657.78,0.61490019]
[1747799215210,0.26435031,658.98,657.79,0.61490019]
[1747799215403,0.26435031,658.98,657.8,0.61517588]
[1747799215608,0.26435031,658.98,657.76,0.30401738]
[1747799215808,0.26435031,658.98,657.77,0.6151783]
[1747799216007,0.26435031,658.98,657.78,0.6151783]
[1747799216310,0.26435031,658.98,657.79,0.6151783]
[1747799216510,0.26435031,658.98,657.8,0.91919568]
[1747799216710,1.069,658.99,657.8,0.30401738]
[1747799217513,1.069,658.99,657.81,0.61516012]
[1747799217711,1.069,658.99,657.8,0.30401738]
[1747799217912,0.2643734,658.98,657.81,0.61507621]
[1747799218113,0.2643734,658.98,657.8,0.30401738]
[1747799218413,0.2643734,658.98,657.81,0.91905118]
[1747799218613,0.2643734,658.98,657.81,0.30401738]
[1747799219816,0.2643734,658.98,657.64,1.034]
[1747799220016,0.2643734,658.98,657.65,0.61508836]
[1747799220218,0.2643734,658.98,657.66,1.73549589]
[1747799220412,0.2643734,658.98,657.66,1.12040753]
[1747799220619,0.2643734,658.98,657.67,1.73547683]
[1747799220820,0.2643734,658.98,657.68,0.6150693]
[1747799221013,0.2643734,658.98,657.69,0.6150693]
[1747799221211,0.2643734,658.98,657.7,1.73547683]
[1747799221413,3.81099221,658.7,657.71,0.6150693]
[1747799221614,3.81099221,658.7,657.72,0.6150693]
[1747799221813,3.81099221,658.7,657.73,0.6150693]
[1747799222117,3.81099221,658.7,657.74,0.6150693]
[1747799222419,3.81099221,658.7,657.75,1.7357117]
[1747799222621,3.81099221,658.7,657.76,1.7357117]
[1747799222815,3.81099221,658.7,657.77,1.7357117]
[1747799223017,3.81099221,658.7,657.78,0.6150693]
[1747799223218,3.81099221,658.7,657.79,0.6150693]
[1747799223415,3.81099221,658.7,657.8,0.61521763]
[1747799223719,3.81099221,658.7,657.81,2.02521763]
[1747799223920,3.81099221,658.7,657.82,0.61521763]
[1747799224220,3.81099221,658.7,657.83,0.61521763]
[1747799224421,3.81099221,658.7,657.84,0.61521763]
[1747799224615,3.81099221,658.7,657.85,0.61521763]
[1747799224814,3.81099221,658.7,657.86,0.61521763]
[1747799225017,3.81099221,658.7,657.87,0.61521763]
[1747799225215,3.81099221,658.7,657.88,0.61521286]
[1747799225419,3.81099221,658.7,657.81,1.41]
[1747799225620,3.81099221,658.7,657.82,0.61522591]
[1747799225820,3.81099221,658.7,657.83,0.61522591]
[1747799226016,3.81099221,658.7,657.84,0.61522591]
[1747799226223,3.81099221,658.7,657.85,0.61522591]
[1747799226522,3.81099221,658.7,657.86,0.61522591]
[1747799226721,3.81099221,658.7,657.87,0.61522591]
[1747799226923,3.81099221,658.7,657.88,0.61522441]
[1747799227116,3.81099221,658.7,657.81,1.41]
[1747799227321,3.81099221,658.7,657.82,0.61522479]
[1747799227518,3.81099221,658.7,657.83,0.61522479]
[1747799227718,3.81099221,658.7,657.84,0.61522479]
[1747799227921,3.81099221,658.7,657.85,0.61522479]
[1747799228220,3.81099221,658.7,657.86,0.61522479]
[1747799228426,3.81099221,658.7,657.87,0.61522479]
[1747799228719,3.81099221,658.7,657.88,0.61520516]
[1747799228920,3.81099221,658.7,657.81,1.41]
[1747799229224,3.81099221,658.7,657.82,0.61520452]
[1747799229425,3.81099221,658.7,657.83,0.61520452]
[1747799229619,3.81099221,658.7,657.84,0.61520452]
[1747799229823,3.81099221,658.7,657.85,0.61520452]
[1747799229824,1.371,658.69,657.85,0.61520452]
[1747799230119,1.371,658.69,657.86,0.61520452]
[1747799230424,1.371,658.69,657.87,0.61520452]
[1747799230623,1.371,658.69,657.88,0.61520452]
[1747799230919,1.371,658.69,657.81,1.41]
[1747799231226,1.371,658.69,657.82,0.61530518]
[1747799231419,1.371,658.69,657.83,0.61530518]
[1747799231625,1.371,658.69,657.84,0.61530518]
[1747799231826,1.371,658.69,657.85,0.61530518]
[1747799232021,1.371,658.69,657.86,0.61530518]
[1747799232221,1.371,658.69,657.87,0.61531756]
[1747799232421,1.371,658.69,657.88,0.61531756]
[1747799232626,1.371,658.69,657.89,0.61531756]
[1747799232822,1.371,658.69,657.9,0.61531756]
[1747799233025,1.371,658.69,657.83,0.30402059]
[1747799233226,1.371,658.69,657.84,0.61533791]
[1747799233427,1.371,658.69,657.85,0.61533791]
[1747799233623,1.371,658.69,657.86,0.61533791]
[1747799233828,1.371,658.69,657.87,0.61533972]
[1747799234027,1.371,658.69,657.88,0.61533972]
[1747799234228,1.371,658.69,657.89,0.61533972]
[1747799234430,1.371,658.69,657.9,0.61533972]
[1747799234631,1.371,658.69,657.85,0.30402059]
[1747799234824,1.371,658.69,657.86,0.61544577]
[1747799235028,1.371,658.69,657.87,0.61544577]
[1747799235230,1.371,658.69,657.88,0.61544577]
[1747799235431,1.371,658.69,657.81,1.41]
[1747799235732,1.371,658.69,657.61,0.29042344]
[1747799235733,1.371,658.69,657.82,0.61560886]
[1747799235932,1.371,658.69,657.83,0.61560886]
[1747799236134,1.371,658.69,657.84,0.61560886]
[1747799236328,1.371,658.69,657.85,0.61560886]
[1747799236527,1.371,658.69,657.42,0.29042344]
[1747799236727,1.371,658.69,657.43,0.61560701]
[1747799236934,1.371,658.69,657.44,0.61560701]
[1747799237136,1.371,658.69,657.45,0.61560701]
[1747799237329,1.371,658.69,657.46,0.61560701]
[1747799237532,1.371,658.69,657.47,0.91964817]
[1747799237731,1.371,658.69,657.48,0.61560701]
[1747799237934,1.371,658.69,657.49,0.61560701]
[1747799238133,1.371,658.69,657.5,0.61560701]
[1747799238333,1.371,658.69,657.51,1.73791545]
[1747799238530,1.371,658.69,657.52,0.61560701]
[1747799238729,1.371,658.69,657.53,0.61560701]
[1747799238934,1.371,658.69,657.54,1.73791545]
[1747799239135,1.371,658.69,657.55,0.61560701]
[1747799239332,1.371,658.69,657.56,0.61560701]
[1747799239538,1.371,658.69,657.57,1.73791545]
[1747799239736,1.371,658.69,657.58,1.73791545]
[1747799240036,1.371,658.69,657.59,0.61560701]
[1747799240231,1.371,658.69,657.6,1.73791545]
[1747799240433,1.371,658.69,657.61,0.61560701]
[1747799240631,1.371,658.69,657.62,1.73791545]
[1747799240835,1.371,658.69,657.63,0.61560701]
[1747799241036,1.371,658.69,657.64,0.61560701]
[1747799241233,1.371,658.69,657.65,1.73791545]
[1747799241436,1.371,658.69,657.66,0.61560701]
[1747799241633,1.371,658.69,657.67,0.61560701]
[1747799241832,1.371,658.69,657.68,0.61560701]
[1747799242033,1.371,658.69,657.69,1.73791545]
[1747799242239,1.371,658.69,657.7,0.61560701]
[1747799242432,1.371,658.69,657.71,0.61539658]
[1747799242636,1.371,658.69,657.72,0.61539658]
[1747799242832,0.26438847,658.85,657.73,1.73770502]
[1747799243034,0.26438847,658.85,657.74,1.73770502]
[1747799243234,0.26438847,658.85,657.75,1.73770502]
[1747799243534,0.26438847,658.85,657.76,0.61539658]
[1747799243738,5.33538909,659.23,657.77,0.61539658]
[1747799243937,0.26434228,658.84,657.78,0.61539658]
[1747799244136,0.26434228,658.84,657.79,0.61538822]
[1747799244439,5.33538909,659.23,657.8,0.61538822]
[1747799244640,5.33538909,659.23,657.78,0.30404116]
[1747799244834,5.33538909,659.23,657.79,0.61540711]
[1747799245035,0.26434529,659.22,657.8,0.61540711]
[1747799245233,0.26434529,659.22,657.56,1.415]
[1747799245435,0.26434529,659.22,657.57,0.61535164]
[1747799245640,1.19,659.21,657.58,0.61535164]
[1747799245841,1.19,659.21,657.59,1.73716839]
[1747799246041,1.19,659.21,657.6,0.61535124]
[1747799246340,1.19,659.21,657.61,2.04123884]
[1747799246639,1.19,659.21,657.62,1.73716839]
[1747799246840,1.19,659.21,657.63,0.61535124]
[1747799247141,0.26436638,659.2,657.64,0.61535124]
[1747799247343,0.26436638,659.2,657.65,1.73716839]
[1747799247541,0.26436638,659.2,657.66,0.61520824]
[1747799247743,0.26436638,659.2,657.67,0.61520824]
[1747799247937,0.26436638,659.2,657.68,0.61520824]
[1747799248137,0.26436638,659.2,657.69,0.61520824]
[1747799248338,0.26436638,659.2,657.7,0.61520824]
[1747799248641,0.26436638,659.2,657.71,0.61520824]
[1747799248841,0.26436638,659.2,657.72,0.61520824]
[1747799249141,0.26436638,659.2,657.73,0.61520824]
[1747799249340,0.26436638,659.2,657.74,0.6150928]
[1747799249542,0.26436638,659.2,657.75,0.6150928]
[1747799249739,1.19,659.21,657.76,0.6150928]
[1747799249944,0.26435232,659.19,657.77,0.6150928]
[1747799250243,0.26435232,659.19,657.56,1.415]
[1747799250437,0.26435232,659.19,657.57,0.61504806]
[1747799250641,0.26435232,659.19,657.58,0.61504806]
[1747799250837,0.26435232,659.19,657.59,0.61504806]
[1747799251041,0.26435232,659.19,657.6,0.61504806]
[1747799251244,0.26435232,659.19,657.61,0.61504806]
[1747799251443,0.26435232,659.19,657.62,0.61504806]
[1747799251643,0.26435232,659.19,657.63,1.73640145]
[1747799251942,3.81099221,658.89,657.63,1.12135339]
[1747799252145,3.81099221,658.89,657.61,0.30407032]
[1747799253045,3.81099221,658.89,657.56,1.415]
[1747799253847,0.26441961,658.88,657.56,1.415]
[1747799255544,3.81099221,658.89,657.56,1.415]
[1747799256850,0.26441961,658.88,657.56,1.415]
[1747799258645,3.81099221,658.89,657.56,1.415]
[1747799259953,0.26441961,658.88,657.56,1.415]
[1747799261554,0.26441961,658.88,657.57,0.6144234]
[1747799261755,0.26441961,658.88,657.58,0.6144234]
[1747799262053,0.26441961,658.88,657.59,0.6144234]
[1747799262254,0.26441961,658.88,657.6,0.6144234]
[1747799262454,0.26441961,658.88,657.22,0.29042344]
[1747799262654,0.26441961,658.88,657.23,0.61437316]
[1747799262855,0.26441961,658.88,657.24,0.61437316]
[1747799263055,0.26441961,658.88,657.25,0.61437316]
[1747799263259,0.26441961,658.88,657.26,0.61437378]
[1747799263452,0.26441961,658.88,657.27,0.61437378]
[1747799263654,0.26441961,658.88,657.28,1.73402045]
[1747799263856,0.26441961,658.88,657.29,0.61437378]
[1747799264056,0.26441961,658.88,657.3,0.61437378]
[1747799264357,0.26441961,658.88,657.31,1.73402045]
[1747799264556,0.26441961,658.88,657.32,0.61437378]
[1747799264754,0.26441961,658.88,657.33,1.73402045]
[1747799264955,0.26441961,658.88,657.34,0.61436406]
[1747799265157,0.26441961,658.88,657.35,0.61436406]
[1747799265456,0.26441961,658.88,657.36,1.73401073]
[1747799265656,0.26441961,658.88,657.37,0.61436406]
[1747799265856,0.26441961,658.88,657.38,1.73401073]
[1747799266157,0.26441961,658.88,657.39,1.73401073]
[1747799266353,0.26441961,658.88,657.4,0.61436406]
[1747799266556,0.26441961,658.88,657.41,0.61436406]
[1747799266758,0.26441961,658.88,657.42,0.61434008]
[1747799267056,0.26441961,658.88,657.43,1.73398675]
[1747799267257,0.26441961,658.88,657.44,0.61434008]
[1747799267458,0.26441961,658.88,657.45,1.73398675]
[1747799267658,0.26441961,658.88,657.46,1.73398675]
[1747799267855,0.26441961,658.88,657.47,1.73398675]
[1747799268060,0.26441961,658.88,657.48,0.61434008]
[1747799268256,0.26441961,658.88,657.49,0.61434008]
[1747799268565,0.26441961,658.88,657.5,0.61434008]
[1747799268759,0.26441961,658.88,657.51,0.61434008]
[1747799268955,0.26441961,658.88,657.52,0.61434008]
[1747799269155,0.26441961,658.88,657.53,0.61434008]
[1747799269460,0.26441961,658.88,657.54,0.61434008]
[1747799269665,0.26441961,658.88,657.55,0.61434008]
[1747799269960,0.26441961,658.88,657.56,1.73483284]
[1747799270161,0.26441961,658.88,657.57,0.61434008]
[1747799270362,0.26441961,658.88,657.58,1.73483284]
[1747799270561,0.26441961,658.88,657.59,0.91845558]
[1747799270763,0.26441961,658.88,657.6,1.73483284]
[1747799270961,3.81099221,659.16,657.61,0.61434008]
[1747799271157,3.81099221,659.16,657.62,1.73483284]
[1747799271362,3.81099221,659.16,657.63,1.73483284]
[1747799271560,3.81099221,659.16,657.64,1.73483284]
[1747799271761,3.81099221,659.16,657.65,0.61434008]
[1747799272060,0.26434529,659.15,657.66,0.61434008]
[1747799272263,3.81099221,659.11,657.67,1.73483284]
[1747799272462,3.81099221,659.11,657.68,0.61434008]
[1747799272761,3.81099221,659.11,657.69,0.61434008]
[1747799272963,3.81099221,659.11,657.7,0.61434008]
[1747799273157,3.81099221,659.11,657.71,0.61434008]
[1747799273359,3.81099221,659.11,657.72,0.61434008]
[1747799273561,3.81099221,659.11,657.73,0.6167999]
[1747799273760,3.81099221,659.11,657.74,0.6167999]
[1747799273963,0.26434127,659.1,657.75,0.6167999]
[1747799274163,0.26434127,659.1,657.76,0.6167999]
[1747799274356,0.26434127,659.1,657.77,0.6167999]
[1747799274555,0.26434127,659.1,657.78,0.6167999]
[1747799274756,0.26434127,659.1,657.44,0.29042344]
[1747799274960,0.26434127,659.1,657.45,2.02670929]
[1747799275161,0.26434127,659.1,657.46,0.61681535]
[1747799275358,0.26434127,659.1,657.47,0.6168284]
[1747799275559,0.26434127,659.1,657.48,0.6168284]
[1747799275763,0.26434127,659.1,657.49,0.6168284]
[1747799276063,0.26434127,659.1,657.5,1.7362989]
[1747799276261,0.26434127,659.1,657.51,0.6168284]
[1747799276465,0.26434127,659.1,657.52,0.6168284]
[1747799276664,3.81099221,659.11,657.53,0.6168284]
[1747799276861,3.81099221,659.11,657.54,0.6168284]
[1747799277062,1.16,659.1,657.55,0.6168284]
[1747799277265,1.16,659.1,657.56,1.7362989]
[1747799277460,1.16,659.1,657.57,0.6168284]
[1747799277664,1.16,659.1,657.58,1.7362989]
[1747799277863,1.16,659.1,657.59,1.7362989]
[1747799278066,0.26435131,659.09,657.6,0.6168284]
[1747799278267,0.26435131,659.09,657.61,1.7362989]
[1747799278567,0.26435131,659.09,657.62,0.6168284]
[1747799278763,0.26435131,659.09,657.63,0.92092342]
[1747799279067,0.26435131,659.09,657.64,0.61688472]
[1747799279267,0.26435131,659.09,657.65,0.61688472]
[1747799279468,0.26435131,659.09,657.66,0.61688472]
[1747799279665,0.26435131,659.09,657.67,1.73635522]
[1747799279868,0.26435131,659.09,657.68,0.61688472]
[1747799280169,0.26435131,659.09,657.69,0.61688472]
[1747799280369,0.26435131,659.09,657.7,0.61688472]
[1747799280565,3.81099221,659.04,657.71,1.73635522]
[1747799280771,3.81099221,659.04,657.72,0.61688472]
[1747799280970,3.81099221,659.04,657.73,1.73635522]
[1747799281166,3.81099221,659.04,657.74,0.61688472]
[1747799281363,3.81099221,659.04,657.75,2.04039392]
[1747799281566,3.81099221,659.04,657.76,0.61688472]
[1747799281766,3.81099221,659.04,657.77,0.61688472]
[1747799281964,3.81099221,659.04,657.78,0.61688472]
[1747799282168,3.81099221,659.04,657.79,0.61688472]
[1747799282369,3.81099221,659.04,657.8,0.61688472]
[1747799282566,3.81099221,659.04,657.81,0.61688472]
[1747799282866,3.81099221,659.04,657.82,0.61688472]
[1747799283071,3.81099221,659.04,657.83,0.61688472]
[1747799283271,3.81099221,659.04,657.81,0.3040387]
[1747799283572,3.81099221,659.04,657.82,0.61752549]
[1747799283769,3.81099221,659.04,657.83,0.61752549]
[1747799283969,3.81099221,659.04,657.81,0.3040387]
[1747799284169,3.81099221,659.04,657.82,0.61750828]
[1747799284371,3.81099221,659.04,657.83,0.61750828]
[1747799284578,3.81099221,659.04,657.59,0.29042344]
[1747799284871,3.81099221,659.04,657.6,0.61748371]
[1747799285072,3.81099221,659.04,657.61,1.73789912]
[1747799285270,3.81099221,659.04,657.62,0.61747842]
[1747799285568,3.81099221,659.04,657.63,2.04190281]
[1747799285773,3.81099221,659.04,657.64,0.61747842]
[1747799285969,3.81099221,659.04,657.65,0.61747842]
[1747799286170,3.81099221,659.04,657.66,1.73789912]
[1747799286470,3.81099221,659.04,657.67,0.61747842]
[1747799286671,3.81099221,659.04,657.68,1.73789912]
[1747799286867,3.81099221,659.04,657.69,0.61748872]
[1747799287173,3.81099221,659.04,657.7,0.92149241]
[1747799287369,3.81099221,659.04,657.71,1.73790942]
[1747799287567,3.81099221,659.04,657.72,0.61748872]
[1747799287771,3.81099221,659.04,657.73,0.61748872]
[1747799287967,3.81099221,659.04,657.74,0.61748872]
[1747799288167,3.81099221,659.04,657.75,0.61748872]
[1747799288375,3.81099221,659.04,657.76,0.61748872]
[1747799288567,3.81099221,659.04,657.77,0.61741338]
[1747799288771,3.81099221,659.04,657.78,0.61741338]
[1747799288973,0.26433525,659.03,657.79,0.61741338]
[1747799289173,0.26433525,659.03,657.8,0.61741338]
[1747799289368,0.26433525,659.03,657.81,0.6174045]
[1747799289574,0.26433525,659.03,657.82,0.6174045]
[1747799289872,0.26433525,659.03,657.83,0.6174045]
[1747799290073,0.26433525,659.03,657.84,0.6174045]
[1747799290271,0.26433525,659.03,657.46,0.29042344]
[1747799290467,0.26433525,659.03,657.47,1.73709346]
[1747799290672,3.81099221,659.04,657.48,0.61734028]
[1747799290868,3.81099221,659.04,657.49,1.73709346]
[1747799291070,3.81099221,659.04,657.5,0.61734028]
[1747799291271,3.81099221,659.04,657.51,0.61734028]
[1747799291469,3.81099221,659.04,657.52,0.61734028]
[1747799291675,3.81099221,659.36,657.53,1.73709346]
[1747799291872,0.26432923,659.12,657.54,0.61734028]
[1747799292071,3.81099221,659.36,657.55,1.73709346]
[1747799292273,3.81099221,659.36,657.56,0.61734028]
[1747799292573,3.81099221,659.36,657.57,2.04105652]
[1747799292774,3.81099221,659.36,657.58,0.61734028]
[1747799293073,0.26428707,659.35,657.59,0.61734028]
[1747799293274,0.26428707,659.35,657.6,1.73709346]
[1747799293468,0.26428707,659.35,657.61,1.73709346]
[1747799293673,0.26428707,659.35,657.62,0.61734028]
[1747799293873,1.109,659.34,657.63,1.73709346]
[1747799294173,1.109,659.34,657.64,0.61734028]
[1747799294368,1.109,659.34,657.65,1.73709346]
[1747799294572,1.109,659.34,657.66,0.61734028]
[1747799294769,1.109,659.34,657.67,1.73709346]
[1747799294969,1.109,659.34,657.68,0.61546688]
[1747799295175,1.109,659.34,657.69,0.61546688]
[1747799295376,1.109,659.34,657.68,1.11975318]
[1747799295675,1.109,659.34,657.69,1.73511144]
[1747799295870,1.109,659.34,657.7,1.73511144]
[1747799296178,1.109,659.34,657.71,0.61535826]
[1747799296475,1.109,659.34,657.72,1.73511144]
[1747799296677,1.109,659.34,657.73,0.61535826]
[1747799296879,1.109,659.34,657.74,0.61535826]
[1747799297071,1.109,659.34,657.75,0.61535826]
[1747799297274,1.109,659.34,657.76,1.73511144]
[1747799297478,1.109,659.34,657.77,0.61535826]
[1747799297675,1.109,659.34,657.78,0.61535826]
[1747799297879,0.26426901,659.33,657.79,1.73511144]
[1747799298076,0.26426901,659.33,657.8,1.73511144]
[1747799298277,0.26426901,659.33,657.81,0.61535826]
[1747799298482,0.26426901,659.33,657.82,0.91932132]
[1747799298783,0.26426901,659.33,657.83,0.61535826]
[1747799298983,0.26426901,659.33,657.84,0.61503751]
[1747799299182,0.26426901,659.33,657.85,0.61503751]
[1747799299382,0.26426901,659.33,657.86,0.61503751]
[1747799299582,0.26426901,659.33,657.87,0.61503751]
[1747799299781,0.26426901,659.33,657.88,0.61503751]
[1747799300082,0.26426901,659.33,657.89,0.61503751]
[1747799300282,0.26426901,659.33,657.82,0.30396306]
[1747799300483,0.26426901,659.33,657.83,0.61485599]
[1747799300685,1.109,659.34,657.84,0.61485599]
[1747799300887,0.26426299,659.32,657.85,0.61485599]
[1747799301187,0.26426299,659.32,657.86,0.61485599]
[1747799301386,0.26426299,659.32,657.87,0.61485599]
[1747799301683,0.26426299,659.32,657.88,0.61485599]
[1747799301885,0.26426299,659.32,657.76,1.219]
[1747799302086,0.26426299,659.32,657.77,0.6153611]
[1747799302280,0.26426299,659.32,657.78,0.6153611]
[1747799302483,0.26426299,659.32,657.79,0.6153611]
[1747799302687,0.26426299,659.32,657.8,0.6153611]
[1747799302986,0.26426299,659.32,657.81,0.6153611]
[1747799303186,0.26426299,659.32,657.82,0.6153611]
[1747799303383,0.26426299,659.32,657.83,0.6153611]
[1747799303583,0.26426299,659.32,657.82,0.30393875]
[1747799303782,0.26426299,659.32,657.83,0.61517076]
[1747799303980,0.26426299,659.32,657.82,0.30393875]
[1747799304183,0.26426299,659.32,657.83,0.61542651]
[1747799304383,0.26426299,659.32,657.76,1.219]
[1747799304580,0.26426299,659.32,657.77,0.61534593]
[1747799304879,0.26426299,659.32,657.78,0.61534593]
[1747799305084,0.26426299,659.32,657.79,0.61534593]
[1747799305281,0.26426299,659.32,657.8,0.61534593]
[1747799305485,0.26426299,659.32,657.81,0.61534593]
[1747799305688,0.26426299,659.32,657.82,0.61534593]
[1747799305988,0.26426299,659.32,657.83,0.61534593]
[1747799306189,0.26426299,659.32,657.84,0.61534593]
[1747799306388,0.26426299,659.32,657.85,0.61534593]
[1747799306584,0.26426299,659.32,657.86,0.61534593]
[1747799306783,1.109,659.34,657.76,1.219]
[1747799306987,1.109,659.34,657.77,0.61505479]
[1747799307184,1.109,659.34,657.78,0.61505479]
[1747799307488,1.109,659.34,657.79,0.61505479]
[1747799307684,1.109,659.34,657.8,0.61505479]
[1747799307993,0.26426499,659.33,657.81,0.61505479]
[1747799308185,0.26426499,659.33,657.82,0.61505479]
[1747799308388,0.26426499,659.33,657.83,0.61505479]
[1747799308588,0.26426499,659.33,657.84,0.61505479]
[1747799308788,0.26426499,659.33,657.85,0.61505479]
[1747799308984,0.26426499,659.33,657.79,0.30392578]
[1747799309188,0.26426499,659.33,657.8,0.61483792]
[1747799309388,0.26426499,659.33,657.81,0.9187637]
[1747799309588,0.26426499,659.33,657.82,0.61483792]
[1747799309789,1.109,659.34,657.83,0.61483792]
[1747799310092,0.264268,659.32,657.84,0.61483792]
[1747799310286,0.264268,659.32,657.81,0.30392578]
[1747799310486,0.264268,659.32,657.82,0.61476716]
[1747799310690,0.264268,659.32,657.81,0.30392578]
[1747799310893,0.264268,659.32,657.82,0.61475921]
[1747799311088,0.264268,659.32,657.82,0.30392578]
[1747799311994,0.264268,659.32,657.83,0.61473586]
[1747799312193,0.264268,659.32,657.84,0.61473586]
[1747799312492,0.264268,659.32,657.85,0.61473586]
[1747799312693,1.109,659.34,657.86,0.61473586]
[1747799312894,1.109,659.34,657.76,1.219]
[1747799313094,1.109,659.34,657.77,0.6152549]
[1747799313294,1.109,659.34,657.78,0.6152549]
[1747799313493,1.109,659.34,657.79,0.6152549]
[1747799313690,1.109,659.34,657.8,0.91919298]
[1747799313889,0.26428306,659.33,657.81,0.6152549]
[1747799314094,0.26428306,659.33,657.82,0.6152549]
[1747799314294,0.26428306,659.33,657.83,0.6152549]
[1747799314497,0.26428306,659.33,657.84,0.6152549]
[1747799314691,0.26428306,659.33,657.85,0.6152549]
[1747799314893,0.26428306,659.33,657.86,0.6152549]
[1747799315089,0.26428306,659.33,657.76,1.219]
[1747799315293,0.26428306,659.33,657.77,0.6152129]
[1747799315493,0.26428306,659.33,657.78,0.6152129]
[1747799315693,1.109,659.34,657.79,0.6152129]
[1747799315892,1.109,659.34,657.8,0.6152129]
[1747799316193,3.81099221,659.35,657.81,0.6152129]
[1747799316392,3.81099221,659.35,657.82,0.6152129]
[1747799316592,3.81099221,659.35,657.83,0.6152129]
[1747799316795,3.81099221,659.35,657.84,0.6152129]
[1747799316993,0.26427904,659.34,657.85,0.6152129]
[1747799317196,0.26427904,659.34,657.86,0.6152129]
[1747799317496,0.26427904,659.34,657.76,1.219]
[1747799317697,0.26427904,659.34,657.77,0.61537939]
[1747799317900,0.26427904,659.34,657.78,0.61537939]
[1747799318098,0.26427904,659.34,657.79,0.61537939]
[1747799318301,0.26427904,659.34,657.8,0.61537939]
[1747799318499,0.26427904,659.34,657.81,0.61537939]
[1747799318700,0.26427904,659.34,657.76,1.219]
[1747799318995,0.26427904,659.34,657.77,0.615824]
[1747799319199,0.26427904,659.34,657.78,0.615824]
[1747799319397,0.26427904,659.34,657.79,0.615824]
[1747799319597,1.22,659.33,657.76,1.219]
[1747799319798,1.22,659.33,657.77,0.61601209]
[1747799319998,1.22,659.33,657.76,1.219]
[1747799320197,1.22,659.33,657.77,0.61600911]
[1747799320398,1.22,659.33,657.78,0.61600911]
[1747799320597,1.22,659.33,657.44,0.55472155]
[1747799320797,1.22,659.33,657.45,0.61611935]
[1747799320998,1.22,659.33,657.46,0.61611935]
[1747799321194,1.22,659.33,657.47,1.73299944]
[1747799321399,1.22,659.33,657.48,0.61621647]
[1747799321698,1.22,659.33,657.49,1.73309656]
[1747799321900,1.22,659.33,657.5,1.73309656]
[1747799322198,1.22,659.33,657.51,0.61621647]
[1747799322399,1.22,659.33,657.52,1.73309656]
[1747799322599,1.22,659.33,657.53,0.61621647]
[1747799322799,1.22,659.33,657.54,1.73309656]
[1747799322999,1.22,659.33,657.55,0.61621647]
[1747799323200,1.22,659.33,657.56,0.61621647]
[1747799323401,1.22,659.33,657.57,0.61621647]
[1747799323702,1.22,659.33,657.58,0.61621647]
[1747799323896,1.22,659.33,657.59,1.73309656]
[1747799324100,1.22,659.33,657.6,1.73309656]
[1747799324302,1.22,659.33,657.61,0.61621647]
[1747799324502,1.22,659.33,657.62,0.61621647]
[1747799324702,1.22,659.33,657.63,1.73309656]
[1747799325002,0.26432923,659.32,657.64,0.61705205]
[1747799325200,0.26432923,659.32,657.65,1.73393214]
[1747799325402,0.26432923,659.32,657.66,0.61705205]
[1747799325702,0.26432923,659.32,657.67,1.73393214]
[1747799325897,0.26432923,659.32,657.68,1.73393214]
[1747799326098,0.26432923,659.32,657.69,0.61705205]
[1747799326302,0.26432923,659.32,657.7,0.61705205]
[1747799326502,0.26432923,659.32,657.71,0.61770229]
[1747799326705,0.26432923,659.32,657.72,0.61770229]
[1747799326905,0.26432923,659.32,657.73,0.61770229]
[1747799327106,0.26432923,659.32,657.74,0.61770229]
[1747799327303,0.26432923,659.32,657.75,0.61770229]
[1747799327504,0.26432923,659.32,657.73,0.30398371]
[1747799327505,0.26432923,659.32,657.76,0.61770229]
[1747799327704,1.22,659.33,657.77,0.61770229]
[1747799327905,1.22,659.33,657.78,0.61770229]
[1747799328106,0.26431517,659.31,657.79,0.61770229]
[1747799328302,0.26431517,659.31,657.8,0.61796813]
[1747799328508,0.26431517,659.31,657.81,0.61796813]
[1747799328706,0.26431517,659.31,657.82,0.61796813]